[Event "GrandPrix_30.05"]
[Site "Chess.com"]
[Date "2020.05.30"]
[Round "1"]
[White "AnotherGrumpy"]
[Black "NikolaN98"]
[Result "1-0"]
[WhiteElo "1993"]
[BlackElo "2143"]
[TimeControl "600+2"]
[EndTime "8:21:46 PDT"]
[Termination "AnotherGrumpy won by checkmate"]

1. d4 {[%clk 0:09:56.3]} 1... e6 {[%clk 0:09:59.5]} 2. c4 {[%clk 0:09:51.8]}
2... f5 {[%clk 0:09:59.6]} 3. Nc3 {[%clk 0:09:48.6]} 3... Nf6 {[%clk 0:09:59.9]}
4. Bg5 {[%clk 0:09:44.5]} 4... Bb4 {[%clk 0:09:59.6]} 5. Qc2 {[%clk 0:09:43.6]}
5... b6 {[%clk 0:09:47.1]} 6. Nf3 {[%clk 0:09:30.7]} 6... Bb7 {[%clk 0:09:47.3]}
7. e3 {[%clk 0:09:31.9]} 7... O-O {[%clk 0:09:46.4]} 8. Bd3 {[%clk 0:09:32.1]}
8... d6 {[%clk 0:09:41.5]} 9. O-O-O {[%clk 0:09:21.3]} 9... Bxc3 {[%clk
0:09:38.2]} 10. Qxc3 {[%clk 0:09:13.6]} 10... Nbd7 {[%clk 0:09:35.4]} 11. Qc2
{[%clk 0:09:13.4]} 11... h6 {[%clk 0:09:34.6]} 12. Bh4 {[%clk 0:09:12.7]} 12...
Qe8 {[%clk 0:09:21.5]} 13. Nd2 {[%clk 0:08:32.1]} 13... Qh5 {[%clk 0:07:50]} 14.
Bg3 {[%clk 0:08:23.4]} 14... Bxg2 {[%clk 0:07:47.9]} 15. Rhg1 {[%clk 0:08:23.9]}
15... Bh3 {[%clk 0:07:32.5]} 16. Rde1 {[%clk 0:07:59]} 16... e5 {[%clk
0:07:07.6]} 17. c5 {[%clk 0:07:35.5]} 17... bxc5 {[%clk 0:05:17.9]} 18. dxe5
{[%clk 0:07:32.1]} 18... dxe5 {[%clk 0:05:18.1]} 19. Nc4 {[%clk 0:07:26.7]}
19... Rae8 {[%clk 0:05:13.6]} 20. Rd1 {[%clk 0:07:03.3]} 20... Kh8 {[%clk
0:05:07.7]} 21. Rd2 {[%clk 0:06:24.9]} 21... Bg4 {[%clk 0:02:47.3]} 22. a3
{[%clk 0:06:10.3]} 22... Re7 {[%clk 0:02:35]} 23. Qa4 {[%clk 0:06:03.3]} 23...
Nb6 {[%clk 0:01:42.3]} 24. Qb5 {[%clk 0:05:54.6]} 24... Nxc4 {[%clk 0:01:40.8]}
25. Qxc4 {[%clk 0:05:55.3]} 25... Nd7 {[%clk 0:01:30.3]} 26. Bc2 {[%clk
0:05:33]} 26... Ref7 {[%clk 0:01:26.3]} 27. Rxd7 {[%clk 0:05:22.1]} 27... Rxd7
{[%clk 0:01:25.6]} 28. Bxe5 {[%clk 0:05:23.3]} 28... Qf7 {[%clk 0:01:12.3]} 29.
Qxc5 {[%clk 0:05:18.8]} 29... Rfd8 {[%clk 0:00:38.7]} 30. h3 {[%clk 0:05:08.2]}
30... Qd5 {[%clk 0:00:21.2]} 31. Qc3 {[%clk 0:04:53.2]} 31... Re7 {[%clk
0:00:10.7]} 32. Bxg7+ {[%clk 0:04:33.6]} 32... Rxg7 {[%clk 0:00:11.6]} 33. hxg4
{[%clk 0:04:35.1]} 33... fxg4 {[%clk 0:00:13.5]} 34. b4 {[%clk 0:04:16.7]} 34...
Qf3 {[%clk 0:00:10.8]} 35. Rg3 {[%clk 0:03:46.3]} 35... Qxf2 {[%clk 0:00:06.5]}
36. Rxg4 {[%clk 0:03:43.3]} 36... Qf1+ {[%clk 0:00:05.6]} 37. Kb2 {[%clk
0:03:43.4]} 37... Qf7 {[%clk 0:00:06.8]} 38. Rg6 {[%clk 0:03:41.2]} 38... Rd6
{[%clk 0:00:05.3]} 39. Rg4 {[%clk 0:03:22.2]} 39... Qf6 {[%clk 0:00:06.3]} 40.
Rf4 {[%clk 0:03:02]} 40... Qxc3+ {[%clk 0:00:06.3]} 41. Kxc3 {[%clk 0:03:03.9]}
41... Re7 {[%clk 0:00:07]} 42. e4 {[%clk 0:03:01]} 42... h5 {[%clk 0:00:05.6]}
43. Rh4 {[%clk 0:02:58.2]} 43... Rh6 {[%clk 0:00:04.1]} 44. Kd4 {[%clk
0:02:59.4]} 44... Rd7+ {[%clk 0:00:04.4]} 45. Kc5 {[%clk 0:02:55.1]} 45... Rd2
{[%clk 0:00:04.8]} 46. Bb3 {[%clk 0:02:56.3]} 46... Rd3 {[%clk 0:00:05.3]} 47.
Bd5 {[%clk 0:02:49.5]} 47... Rc3+ {[%clk 0:00:05.5]} 48. Kd4 {[%clk 0:02:48]}
48... Rxa3 {[%clk 0:00:05.6]} 49. e5 {[%clk 0:02:47.2]} 49... Kg7 {[%clk
0:00:05.6]} 50. e6 {[%clk 0:02:46.2]} 50... Rg3 {[%clk 0:00:03.8]} 51. Rh1
{[%clk 0:02:37]} 51... Kf6 {[%clk 0:00:03.7]} 52. Rf1+ {[%clk 0:02:36.7]} 52...
Ke7 {[%clk 0:00:04.9]} 53. Rf7+ {[%clk 0:02:37.9]} 53... Ke8 {[%clk 0:00:05.1]}
54. Bc6+ {[%clk 0:02:38.5]} 54... Kd8 {[%clk 0:00:06]} 55. e7+ {[%clk
0:02:39.8]} 55... Kc8 {[%clk 0:00:06]} 56. e8=Q# {[%clk 0:02:40.5]} 1-0

[Event "GrandPrix_30.05"]
[Site "Chess.com"]
[Date "2020.05.30"]
[Round "1"]
[White "troisi"]
[Black "DariaVoit"]
[Result "0-1"]
[WhiteElo "1558"]
[BlackElo "2258"]
[TimeControl "600+2"]
[EndTime "8:21:46 PDT"]
[Termination "DariaVoit won by checkmate"]

1. e4 {[%clk 0:09:58.1]} 1... e6 {[%clk 0:10:00.6]} 2. d4 {[%clk 0:09:56.7]}
2... d5 {[%clk 0:10:00.1]} 3. Bd3 {[%clk 0:09:57]} 3... dxe4 {[%clk 0:09:59.1]}
4. Bxe4 {[%clk 0:09:51.7]} 4... Nf6 {[%clk 0:09:59]} 5. Bf3 {[%clk 0:09:50.9]}
5... c5 {[%clk 0:10:00.5]} 6. Ne2 {[%clk 0:09:51]} 6... Nc6 {[%clk 0:10:01.5]}
7. Be3 {[%clk 0:09:51.3]} 7... Nd5 {[%clk 0:10:02.6]} 8. Nbc3 {[%clk 0:09:22.1]}
8... cxd4 {[%clk 0:08:02.3]} 9. Nxd5 {[%clk 0:08:28.3]} 9... dxe3 {[%clk
0:08:02.2]} 10. Nxe3 {[%clk 0:08:30.2]} 10... Bc5 {[%clk 0:07:38.5]} 11. Nc4
{[%clk 0:08:07.1]} 11... O-O {[%clk 0:07:30.8]} 12. O-O {[%clk 0:08:04.6]} 12...
Qh4 {[%clk 0:07:20.6]} 13. b3 {[%clk 0:06:50.7]} 13... Rd8 {[%clk 0:07:15.5]}
14. Qc1 {[%clk 0:06:37.5]} 14... Bd7 {[%clk 0:07:04.4]} 15. g3 {[%clk
0:06:27.6]} 15... Qf6 {[%clk 0:07:01.3]} 16. Qf4 {[%clk 0:06:21.8]} 16... b5
{[%clk 0:06:56.3]} 17. Qxf6 {[%clk 0:05:51.2]} 17... gxf6 {[%clk 0:06:58.2]} 18.
Nd2 {[%clk 0:05:50.5]} 18... Rac8 {[%clk 0:06:52.3]} 19. Ne4 {[%clk 0:05:50.4]}
19... Be7 {[%clk 0:06:51.8]} 20. Bg2 {[%clk 0:03:57]} 20... Ne5 {[%clk
0:06:08.1]} 21. Rac1 {[%clk 0:02:27.7]} 21... f5 {[%clk 0:06:02]} 22. N4c3
{[%clk 0:02:19.8]} 22... Ba3 {[%clk 0:05:35.3]} 23. Rcd1 {[%clk 0:02:17.7]}
23... Bb2 {[%clk 0:05:27.7]} 24. Nb1 {[%clk 0:02:04.4]} 24... Rxc2 {[%clk
0:05:25.2]} 25. Nd4 {[%clk 0:02:05.4]} 25... Rcc8 {[%clk 0:05:18.4]} 26. Rfe1
{[%clk 0:02:01.5]} 26... Be8 {[%clk 0:04:55.2]} 27. Nf3 {[%clk 0:01:48.2]} 27...
Nxf3+ {[%clk 0:04:12.5]} 28. Bxf3 {[%clk 0:01:48.1]} 28... Kf8 {[%clk
0:04:14.2]} 29. Rxd8 {[%clk 0:01:33.6]} 29... Rxd8 {[%clk 0:04:14.1]} 30. Rd1
{[%clk 0:01:32.7]} 30... Rxd1+ {[%clk 0:04:12.6]} 31. Bxd1 {[%clk 0:01:34.6]}
31... Bc6 {[%clk 0:04:13.1]} 32. Bc2 {[%clk 0:01:35]} 32... Ke7 {[%clk
0:04:12.5]} 33. Nd2 {[%clk 0:01:34.6]} 33... Kd6 {[%clk 0:04:11.7]} 34. Kf1
{[%clk 0:01:35.8]} 34... Kc5 {[%clk 0:04:12.4]} 35. Ke2 {[%clk 0:01:35.5]} 35...
Kb4 {[%clk 0:04:12.9]} 36. Nb1 {[%clk 0:01:25.6]} 36... h6 {[%clk 0:04:12.5]}
37. h4 {[%clk 0:01:26.1]} 37... a5 {[%clk 0:04:12.8]} 38. f3 {[%clk 0:01:22]}
38... a4 {[%clk 0:04:10.9]} 39. bxa4 {[%clk 0:01:23.9]} 39... bxa4 {[%clk
0:04:11.7]} 40. g4 {[%clk 0:01:23.7]} 40... fxg4 {[%clk 0:04:07.2]} 41. fxg4
{[%clk 0:01:25.6]} 41... f6 {[%clk 0:04:08.9]} 42. Nd2 {[%clk 0:00:27.8]} 42...
Bd5 {[%clk 0:04:05.4]} 43. Bb1 {[%clk 0:00:18.8]} 43... Ka3 {[%clk 0:04:00.9]}
44. Kd3 {[%clk 0:00:19.7]} 44... Bxa2 {[%clk 0:03:01.4]} 45. Bxa2 {[%clk
0:00:04.2]} 45... Kxa2 {[%clk 0:03:03.3]} 46. Kc2 {[%clk 0:00:05.6]} 46... Be5
{[%clk 0:03:00.6]} 47. Ne4 {[%clk 0:00:06]} 47... f5 {[%clk 0:02:56.7]} 48. gxf5
{[%clk 0:00:03.8]} 48... exf5 {[%clk 0:02:58.6]} 49. Nf2 {[%clk 0:00:04.9]}
49... f4 {[%clk 0:02:53.2]} 50. Nd3 {[%clk 0:00:05.6]} 50... Bd6 {[%clk
0:02:53.8]} 51. h5 {[%clk 0:00:07.5]} 51... f3 {[%clk 0:02:53.9]} 52. Kc3 {[%clk
0:00:08.3]} 52... Kb1 {[%clk 0:02:52.8]} 53. Kd2 {[%clk 0:00:09.6]} 53... a3
{[%clk 0:02:52.5]} 54. Ne1 {[%clk 0:00:10]} 54... f2 {[%clk 0:02:52.7]} 55. Nf3
{[%clk 0:00:09.9]} 55... f1=Q {[%clk 0:02:53.7]} 56. Nd4 {[%clk 0:00:11.8]}
56... Qf2+ {[%clk 0:02:53.8]} 57. Kd3 {[%clk 0:00:12.6]} 57... Qxd4+ {[%clk
0:02:55.4]} 58. Kxd4 {[%clk 0:00:13.9]} 58... a2 {[%clk 0:02:57.1]} 59. Ke4
{[%clk 0:00:15.8]} 59... Be7 {[%clk 0:02:58.8]} 60. Kf5 {[%clk 0:00:17.7]} 60...
Bg5 {[%clk 0:03:00.6]} 61. Kg6 {[%clk 0:00:19.6]} 61... a1=Q {[%clk 0:03:02]}
62. Kh7 {[%clk 0:00:21.5]} 62... Qd4 {[%clk 0:03:01.2]} 63. Kg6 {[%clk
0:00:23.4]} 63... Qd1 {[%clk 0:03:01.7]} 64. Kh7 {[%clk 0:00:25.3]} 64... Qxh5
{[%clk 0:03:03.1]} 65. Kg7 {[%clk 0:00:25.9]} 65... Kc2 {[%clk 0:03:02.1]} 66.
Kg8 {[%clk 0:00:23.8]} 66... Qg6+ {[%clk 0:03:02.1]} 67. Kf8 {[%clk 0:00:25.7]}
67... Qf6+ {[%clk 0:03:03.3]} 68. Kg8 {[%clk 0:00:26.9]} 68... Qe7 {[%clk
0:03:04.4]} 69. Kh8 {[%clk 0:00:28]} 69... Bf6+ {[%clk 0:03:05.9]} 70. Kg8
{[%clk 0:00:29.5]} 70... Qg7# {[%clk 0:03:07.8]} 0-1

[Event "GrandPrix_30.05"]
[Site "Chess.com"]
[Date "2020.05.30"]
[Round "1"]
[White "PavelShkapenko"]
[Black "Natalya_Buksa"]
[Result "1-0"]
[WhiteElo "2412"]
[BlackElo "2079"]
[TimeControl "600+2"]
[EndTime "8:21:50 PDT"]
[Termination "PavelShkapenko won by resignation"]

1. e4 {[%clk 0:10:00.3]} 1... c5 {[%clk 0:09:59.3]} 2. c3 {[%clk 0:09:59.9]}
2... Nf6 {[%clk 0:09:58.8]} 3. e5 {[%clk 0:10:00.7]} 3... Nd5 {[%clk 0:09:59.3]}
4. d4 {[%clk 0:10:02.3]} 4... cxd4 {[%clk 0:09:52.8]} 5. cxd4 {[%clk 0:10:03.3]}
5... Nc6 {[%clk 0:09:53.6]} 6. Nc3 {[%clk 0:10:03.4]} 6... Nc7 {[%clk
0:09:40.8]} 7. Nf3 {[%clk 0:09:35.1]} 7... d6 {[%clk 0:09:40.2]} 8. exd6 {[%clk
0:09:29.7]} 8... exd6 {[%clk 0:09:11]} 9. d5 {[%clk 0:08:46.4]} 9... Ne5 {[%clk
0:09:10.2]} 10. Bf4 {[%clk 0:08:47]} 10... Ng6 {[%clk 0:08:46.3]} 11. Bg3 {[%clk
0:08:47.1]} 11... Be7 {[%clk 0:07:56.8]} 12. Be2 {[%clk 0:08:45]} 12... O-O
{[%clk 0:07:55.9]} 13. O-O {[%clk 0:08:46.4]} 13... Bf6 {[%clk 0:07:46.2]} 14.
Qb3 {[%clk 0:08:14.5]} 14... Re8 {[%clk 0:07:09.1]} 15. Rfe1 {[%clk 0:08:15.1]}
15... b6 {[%clk 0:06:39]} 16. Bc4 {[%clk 0:06:41.6]} 16... Bxc3 {[%clk
0:04:54.1]} 17. Rxe8+ {[%clk 0:06:27.4]} 17... Nxe8 {[%clk 0:04:52.2]} 18. Qxc3
{[%clk 0:06:27.6]} 18... Bb7 {[%clk 0:04:46.9]} 19. Nd4 {[%clk 0:06:06.7]} 19...
Rc8 {[%clk 0:04:45.3]} 20. Nc6 {[%clk 0:05:50.5]} 20... Qf6 {[%clk 0:03:51.6]}
21. Qc2 {[%clk 0:04:24.8]} 21... Bxc6 {[%clk 0:03:37.3]} 22. dxc6 {[%clk
0:04:25.8]} 22... Ne5 {[%clk 0:03:38.5]} 23. Ba6 {[%clk 0:03:38.9]} 23... Rxc6
{[%clk 0:02:09.7]} 24. Qa4 {[%clk 0:03:39.7]} 24... Nc7 {[%clk 0:02:09.4]} 25.
Rd1 {[%clk 0:03:26.3]} 25... h5 {[%clk 0:01:28.6]} 26. f4 {[%clk 0:03:14]} 26...
b5 {[%clk 0:00:57.6]} 27. Bxb5 {[%clk 0:02:56.1]} 27... Rb6 {[%clk 0:00:44.8]}
28. fxe5 {[%clk 0:02:50.5]} 28... dxe5 {[%clk 0:00:45.3]} 29. Bd3 {[%clk
0:02:39]} 29... g6 {[%clk 0:00:18.6]} 30. Qe4 {[%clk 0:02:29.4]} 30... Re6
{[%clk 0:00:12.5]} 31. Bc4 {[%clk 0:02:25.3]} 31... Re7 {[%clk 0:00:13.7]} 32.
Rf1 {[%clk 0:01:51.2]} 32... Qb6+ {[%clk 0:00:13.4]} 33. Kh1 {[%clk 0:01:50.6]}
33... Qd6 {[%clk 0:00:05.9]} 34. Bh4 {[%clk 0:01:30.2]} 34... Rd7 {[%clk
0:00:07]} 35. Bf6 {[%clk 0:01:30.9]} 35... Ne6 {[%clk 0:00:03.7]} 36. Qxe5
{[%clk 0:01:16.8]} 36... Qxe5 {[%clk 0:00:04.8]} 37. Bxe5 {[%clk 0:01:17.2]}
37... Rd2 {[%clk 0:00:05.6]} 38. Bb3 {[%clk 0:01:11.3]} 38... Kf8 {[%clk
0:00:05.5]} 39. Bxe6 {[%clk 0:01:11.5]} 1-0

[Event "GrandPrix_30.05"]
[Site "Chess.com"]
[Date "2020.05.30"]
[Round "1"]
[White "Igrok3069"]
[Black "cukus"]
[Result "1-0"]
[WhiteElo "2671"]
[BlackElo "2190"]
[TimeControl "600+2"]
[EndTime "8:22:02 PDT"]
[Termination "Igrok3069 won by checkmate"]

1. d4 {[%clk 0:09:53.1]} 1... Nf6 {[%clk 0:09:59]} 2. Nf3 {[%clk 0:09:52.8]}
2... g6 {[%clk 0:09:59.4]} 3. g3 {[%clk 0:09:51.4]} 3... Bg7 {[%clk 0:09:58.3]}
4. Bg2 {[%clk 0:09:51.1]} 4... O-O {[%clk 0:09:41.1]} 5. O-O {[%clk 0:09:51.3]}
5... d6 {[%clk 0:09:35.1]} 6. c4 {[%clk 0:09:43.3]} 6... Nc6 {[%clk 0:09:35.4]}
7. Nc3 {[%clk 0:09:42.4]} 7... e5 {[%clk 0:09:35]} 8. dxe5 {[%clk 0:09:41]} 8...
dxe5 {[%clk 0:09:33.1]} 9. Qxd8 {[%clk 0:09:33.9]} 9... Rxd8 {[%clk 0:09:31.3]}
10. Bg5 {[%clk 0:09:35.8]} 10... Be6 {[%clk 0:09:05.1]} 11. Nd2 {[%clk 0:07:36]}
11... h6 {[%clk 0:08:36.6]} 12. Bxf6 {[%clk 0:07:35.7]} 12... Rxd2 {[%clk
0:08:36.2]} 13. Bxg7 {[%clk 0:07:32.5]} 13... Kxg7 {[%clk 0:08:37.5]} 14. b3
{[%clk 0:06:44.5]} 14... Rad8 {[%clk 0:06:58.1]} 15. Bxc6 {[%clk 0:05:36.6]}
15... bxc6 {[%clk 0:06:58]} 16. Rfd1 {[%clk 0:05:37.3]} 16... f5 {[%clk
0:05:08.8]} 17. f3 {[%clk 0:05:31.9]} 17... R8d4 {[%clk 0:04:30.9]} 18. Kf2
{[%clk 0:05:28.7]} 18... Rc2 {[%clk 0:04:18.3]} 19. Rdc1 {[%clk 0:03:53.8]}
19... Rdd2 {[%clk 0:04:10.9]} 20. Rxc2 {[%clk 0:03:31.8]} 20... Rxc2 {[%clk
0:04:12.8]} 21. Na4 {[%clk 0:03:33.2]} 21... Kf6 {[%clk 0:03:43.9]} 22. Nc5
{[%clk 0:03:33.1]} 22... e4 {[%clk 0:02:30.7]} 23. fxe4 {[%clk 0:01:46.2]} 23...
fxe4 {[%clk 0:02:28.8]} 24. Nxe4+ {[%clk 0:01:28.1]} 24... Ke5 {[%clk
0:02:29.1]} 25. Ke3 {[%clk 0:01:29]} 25... Bg4 {[%clk 0:02:00.7]} 26. Nd2 {[%clk
0:01:28.7]} 26... Rc3+ {[%clk 0:01:50.3]} 27. Kf2 {[%clk 0:01:29.6]} 27... Rc2
{[%clk 0:01:42.1]} 28. Ke3 {[%clk 0:01:30.6]} 28... Rc3+ {[%clk 0:01:43]} 29.
Kf2 {[%clk 0:01:31.8]} 29... Rc2 {[%clk 0:01:44.6]} 30. Nf3+ {[%clk 0:01:33.3]}
30... Ke4 {[%clk 0:01:29.3]} 31. Ng1 {[%clk 0:01:19]} 31... c5 {[%clk
0:00:59.3]} 32. Rd1 {[%clk 0:01:01.3]} 32... Rxa2 {[%clk 0:00:58.4]} 33. Rd5
{[%clk 0:01:02.1]} 33... Rb2 {[%clk 0:00:16]} 34. Rxc5 {[%clk 0:00:48.9]} 34...
Rxb3 {[%clk 0:00:16.9]} 35. h3 {[%clk 0:00:49.8]} 35... Bf5 {[%clk 0:00:07.6]}
36. Nf3 {[%clk 0:00:49.2]} 36... Rb2 {[%clk 0:00:05.3]} 37. Re5# {[%clk
0:00:48.9]} 1-0

[Event "GrandPrix_30.05"]
[Site "Chess.com"]
[Date "2020.05.30"]
[Round "1"]
[White "Yuri202062"]
[Black "GMStefanova"]
[Result "0-1"]
[WhiteElo "1993"]
[BlackElo "2338"]
[TimeControl "600+2"]
[EndTime "8:22:02 PDT"]
[Termination "GMStefanova won by resignation"]

1. d4 {[%clk 0:09:58.9]} 1... d5 {[%clk 0:10:00.2]} 2. c4 {[%clk 0:09:59.5]}
2... c6 {[%clk 0:10:00.9]} 3. Nc3 {[%clk 0:10:00.2]} 3... Nf6 {[%clk 0:10:01]}
4. e3 {[%clk 0:10:01.1]} 4... g6 {[%clk 0:09:59.9]} 5. Nf3 {[%clk 0:10:00.5]}
5... Bg7 {[%clk 0:10:00.2]} 6. Be2 {[%clk 0:10:01.6]} 6... O-O {[%clk
0:10:00.1]} 7. O-O {[%clk 0:10:02.2]} 7... a6 {[%clk 0:09:49.3]} 8. Bd2 {[%clk
0:09:44]} 8... b5 {[%clk 0:09:42.7]} 9. cxd5 {[%clk 0:09:42.3]} 9... cxd5 {[%clk
0:09:42.6]} 10. Ne5 {[%clk 0:09:38.6]} 10... Bb7 {[%clk 0:09:38.1]} 11. Nd3
{[%clk 0:09:13.7]} 11... Nbd7 {[%clk 0:09:30.1]} 12. a4 {[%clk 0:09:13.1]} 12...
bxa4 {[%clk 0:09:12.3]} 13. Nxa4 {[%clk 0:08:39.5]} 13... Ne4 {[%clk 0:09:03.5]}
14. Bb4 {[%clk 0:08:15.7]} 14... a5 {[%clk 0:08:55.1]} 15. Ba3 {[%clk
0:08:15.3]} 15... Re8 {[%clk 0:08:24.4]} 16. Ndc5 {[%clk 0:06:46.1]} 16... Ndxc5
{[%clk 0:08:19.8]} 17. Nxc5 {[%clk 0:06:46.2]} 17... Nxc5 {[%clk 0:08:10.3]} 18.
Bxc5 {[%clk 0:06:47]} 18... e5 {[%clk 0:08:06.9]} 19. Qa4 {[%clk 0:05:59]} 19...
exd4 {[%clk 0:07:16.2]} 20. Bxd4 {[%clk 0:05:57.6]} 20... Bxd4 {[%clk
0:07:14.1]} 21. Qxd4 {[%clk 0:05:57.9]} 21... Re4 {[%clk 0:07:12.6]} 22. Qd2
{[%clk 0:05:48]} 22... Qb6 {[%clk 0:04:50.2]} 23. Rac1 {[%clk 0:03:37]} 23... d4
{[%clk 0:04:06.1]} 24. exd4 {[%clk 0:03:36.5]} 24... Rxd4 {[%clk 0:04:01]} 25.
Qe3 {[%clk 0:03:22.1]} 25... Rb4 {[%clk 0:03:45.9]} 26. Qxb6 {[%clk 0:03:13.2]}
26... Rxb6 {[%clk 0:03:46.2]} 27. Rc2 {[%clk 0:01:50.3]} 27... Be4 {[%clk
0:03:39.6]} 28. Rd2 {[%clk 0:01:41.3]} 28... Rab8 {[%clk 0:03:38]} 29. f3 {[%clk
0:01:30.8]} 29... Bf5 {[%clk 0:02:53.5]} 30. g4 {[%clk 0:00:49.2]} 30... Be6
{[%clk 0:02:11]} 31. Rb1 {[%clk 0:00:29.4]} 31... a4 {[%clk 0:02:07.4]} 32. Ra1
{[%clk 0:00:08.8]} 32... Rxb2 {[%clk 0:02:05.2]} 33. Rxb2 {[%clk 0:00:09.4]}
33... Rxb2 {[%clk 0:02:05.8]} 34. Kf1 {[%clk 0:00:10.9]} 34... Ra2 {[%clk
0:01:01.2]} 35. Rd1 {[%clk 0:00:10.4]} 35... a3 {[%clk 0:01:00.6]} 36. Rd8+
{[%clk 0:00:10.7]} 36... Kg7 {[%clk 0:01:01]} 37. Ra8 {[%clk 0:00:11.6]} 37...
Ra1+ {[%clk 0:00:59.7]} 38. Kf2 {[%clk 0:00:12.8]} 38... a2 {[%clk 0:01:00.2]}
0-1

[Event "GrandPrix_30.05"]
[Site "Chess.com"]
[Date "2020.05.30"]
[Round "1"]
[White "LiamVrolijk"]
[Black "StephenDedalus83"]
[Result "1-0"]
[WhiteElo "2457"]
[BlackElo "2093"]
[TimeControl "600+2"]
[EndTime "8:22:04 PDT"]
[Termination "LiamVrolijk won by resignation"]

1. d4 {[%clk 0:10:00.9]} 1... g6 {[%clk 0:09:58]} 2. c4 {[%clk 0:10:00.1]} 2...
Bg7 {[%clk 0:09:58.1]} 3. e4 {[%clk 0:10:00.7]} 3... Nc6 {[%clk 0:09:57.1]} 4.
Ne2 {[%clk 0:09:37.9]} 4... d6 {[%clk 0:09:39.2]} 5. Nbc3 {[%clk 0:09:35.9]}
5... e5 {[%clk 0:09:30.1]} 6. Be3 {[%clk 0:09:36.3]} 6... exd4 {[%clk
0:09:09.9]} 7. Nxd4 {[%clk 0:09:38.2]} 7... Nge7 {[%clk 0:09:10.7]} 8. h4 {[%clk
0:09:29.1]} 8... f5 {[%clk 0:08:38.7]} 9. h5 {[%clk 0:09:26.1]} 9... fxe4 {[%clk
0:08:36.6]} 10. hxg6 {[%clk 0:09:16.5]} 10... hxg6 {[%clk 0:08:36.3]} 11. Rxh8+
{[%clk 0:09:17]} 11... Bxh8 {[%clk 0:08:38.2]} 12. Nxe4 {[%clk 0:09:15.7]} 12...
d5 {[%clk 0:08:32.6]} 13. Nxc6 {[%clk 0:08:32.1]} 13... bxc6 {[%clk 0:08:30.5]}
14. Bd4 {[%clk 0:08:06.9]} 14... Bg4 {[%clk 0:07:48.8]} 15. Qxg4 {[%clk
0:04:53.7]} 15... Bxd4 {[%clk 0:07:47.2]} 16. Nc3 {[%clk 0:04:04.4]} 16... Bxc3+
{[%clk 0:07:22.3]} 17. bxc3 {[%clk 0:04:06.3]} 17... Qd6 {[%clk 0:07:23]} 18.
Bd3 {[%clk 0:03:40.4]} 18... Kf7 {[%clk 0:06:58.2]} 19. Kf1 {[%clk 0:03:08.7]}
19... Rh8 {[%clk 0:06:55.7]} 20. Qf3+ {[%clk 0:03:09.4]} 20... Qf6 {[%clk
0:05:37.5]} 21. Qxf6+ {[%clk 0:03:08.4]} 21... Kxf6 {[%clk 0:05:39.4]} 22. Ke2
{[%clk 0:03:06.6]} 22... Nc8 {[%clk 0:05:12.2]} 23. cxd5 {[%clk 0:02:54.9]}
23... cxd5 {[%clk 0:05:12.1]} 24. Rb1 {[%clk 0:02:55.7]} 24... Nd6 {[%clk
0:04:56.3]} 25. Rb4 {[%clk 0:02:54.8]} 25... Re8+ {[%clk 0:04:27.5]} 26. Kd2
{[%clk 0:02:55.4]} 26... Re7 {[%clk 0:04:13.6]} 27. Rf4+ {[%clk 0:02:44.3]}
27... Kg5 {[%clk 0:04:08.9]} 28. Rd4 {[%clk 0:02:41.6]} 28... c6 {[%clk
0:04:07.7]} 29. c4 {[%clk 0:02:40.2]} 29... Nf5 {[%clk 0:02:59.7]} 30. Bxf5
{[%clk 0:02:15.9]} 30... Kxf5 {[%clk 0:03:01.6]} 31. cxd5 {[%clk 0:02:15.3]}
31... Rd7 {[%clk 0:02:55.5]} 32. d6 {[%clk 0:01:54.9]} 32... Ke5 {[%clk
0:02:56.2]} 33. Kc3 {[%clk 0:01:53]} 33... Rxd6 {[%clk 0:02:21.4]} 34. Rxd6
{[%clk 0:01:54.9]} 34... Kxd6 {[%clk 0:02:22.5]} 35. Kc4 {[%clk 0:01:54.4]}
35... g5 {[%clk 0:02:19]} 36. f3 {[%clk 0:01:45.2]} 36... Ke5 {[%clk 0:02:11.5]}
37. g3 {[%clk 0:01:31.7]} 37... Kd6 {[%clk 0:02:12.1]} 38. a4 {[%clk 0:01:29.2]}
38... a5 {[%clk 0:02:12.2]} 39. f4 {[%clk 0:01:02.8]} 39... gxf4 {[%clk
0:02:12.2]} 40. gxf4 {[%clk 0:01:04.7]} 40... Kd7 {[%clk 0:01:28.1]} 41. Kc5
{[%clk 0:01:00.3]} 41... Kc7 {[%clk 0:01:28.9]} 42. f5 {[%clk 0:00:49.5]} 42...
Kd7 {[%clk 0:01:29.5]} 43. Kb6 {[%clk 0:00:27.7]} 43... Ke7 {[%clk 0:01:12.4]}
44. Kxa5 {[%clk 0:00:18.2]} 44... Kf6 {[%clk 0:01:12.9]} 45. Kb6 {[%clk
0:00:19.3]} 45... Kxf5 {[%clk 0:01:12]} 46. Kxc6 {[%clk 0:00:20.5]} 1-0